[Event "55th Biel Festival MTO 2022"]
[Site "Biel"]
[Date "2022.07.20"]
[Round "7.11"]
[White "Erdos Viktor"]
[Black "Korley Kassa"]
[Result "1-0"]
[ECO "C43"]
[WhiteElo "2586"]
[BlackElo "2421"]
[Annotator "TA"]
[PlyCount "95"]
[EventDate "2022.07.13"]
[EventType "swiss"]
[EventCountry "SUI"]
[SourceTitle "playchess.com"]
[Source "ChessBase"]
[SourceQuality "1"]
[TimeControl "40/5400+30:1800+30"]

{[%evp 14,95,0,0,0,0,0,0,7,0,20,18,18,26,20,17,17,25,60,62,67,66,60,64,61,62,59,67,67,65,68,66,72,70,71,76,78,73,73,67,75,75,73,73,73,73,76,75,85,79,78,78,78,78,78,58,78,9,13,12,65,65,177,160,129,139,225,180,263,257,285,274,289,278,372,370,1163,1096,29984,29985,29982,29969,29983,29984]} 1. e4 {[%emt 0:05:08]} e5 {[%emt 0:00:11]} 2. Nf3 {[%emt 0:00:06]} Nf6 {[%emt 0:00:10]} 3. d4 {[%emt 0:00:25]} Nxe4 {[%emt 0:00:24]} 4. Bd3 {[%emt 0:00:12]} d5 {[%emt 0:00:09]} 5. Nxe5 {[%emt 0:00:09]} Nd7 {[%emt 0:00:23]} 6. Nc3 {[%emt 0:00:28]} Nxe5 {[%emt 0:00:38]} 7. dxe5 {[%emt 0:00:08]} Nxc3 {[%emt 0:00:35]} 8. bxc3 {[%emt 0:00:06]} Bc5 {[%emt 0:00:18] C43: Petroff Defence: 3 d4.} 9. O-O {[%emt 0:00:48]} O-O {[%emt 0:09:54] The main line 9...0-0 scores better than 9...Be6.} 10. Qh5 {[%emt 0:00:22][%csl Gd3][%cal Rh5h7] [#]} g6 $1 {[%emt 0:00:06] The position is equal.} 11. Qh6 {[%emt 0:00:05]} Re8 {[%emt 0:00:33]} 12. Bg5 {[%emt 0:12:54][%cal Bc1g5,Bg5d8,Bd8c7][%mdl 32]} Bf8 {[%emt 0:01:29]} 13. Bxd8 {[%emt 0:04:47]} Bxh6 {[%emt 0:01:33]} 14. Bxc7 {[%emt 0:00:04] [#]} Bd7 $146 {[%emt 0:02:17]} ({Predecessor:} 14... Bf5 15. Bxf5 gxf5 16. Rfd1 Rac8 17. Bd6 Rxc3 18. Rxd5 Rxc2 19. a4 Rd8 20. g3 Bf8 21. Rb1 b6 22. a5 Rc6 23. axb6 axb6 {½-½ (23) Volokitin,A (2677)-Nepomniachtchi,I (2782) Warsaw 2021}) 15. Rab1 {[%emt 0:06:23]} Rec8 {[%emt 0:00:54]} 16. Rxb7 {[%emt 0:17:52]} Bc6 {[%emt 0:00:07]} 17. Ba6 {[%emt 0:01:44][%cal Oc7d6,Bd3a6,Ba6b7,Bb7a8,Ba8d5,Bd5b3][%mdl 32]} Bxb7 {[%emt 0:01:01]} 18. Bxb7 {[%emt 0:00:06]} Rxc7 {[%emt 0:00:05]} 19. Bxa8 {[%emt 0:00:04]} Rxc3 {[%emt 0:00:14]} 20. Bxd5 {[%emt 0:00:05]} Rxc2 $14 {[%emt 0:00:06][%mdl 4096] Endgame KRB-KRB} 21. f4 {[%emt 0:01:08]} Bf8 {[%emt 0:02:07]} 22. g3 {[%emt 0:00:33]} Bc5+ {[%emt 0:17:51]} 23. Kh1 {[%emt 0:00:17]} Kg7 {[%emt 0:21:27]} 24. Bb3 {[%emt 0:05:15]} Rd2 {[%emt 0:01:54]} 25. Rc1 {[%emt 0:01:11]} Bb6 {[%emt 0:00:07]} 26. Rc6 {[%emt 0:00:47]} Bd8 {[%emt 0:02:35]} 27. Rc8 {[%emt 0:06:26]} h5 {[%emt 0:09:21]} 28. Rb8 {[%emt 0:01:31]} Rd7 {[%emt 0:00:36] Prevents Rb7.} 29. Kg2 {[%emt 0:00:56]} Bb6 {[%emt 0:07:30]} 30. Kf3 {[%emt 0:03:12]} Re7 {[%emt 0:01:45]} 31. g4 {[%emt 0:19:28] White is more active.} hxg4+ {[%emt 0:03:22]} 32. Kxg4 {[%emt 0:00:01]} Rd7 {[%emt 0:03:37]} 33. h4 {[%emt 0:00:05]} f5+ {[%emt 0:02:05]} 34. Kf3 {[%emt 0:09:07][%cal Oh4h5]} Rd3+ {[%emt 0:01:27]} 35. Kg2 {[%emt 0:00:14]} (35. Ke2 $16 Re3+ 36. Kd1) 35... Rd2+ $11 {[%emt 0:00:16]} 36. Kh1 {[%emt 0:00:49][%cal Oh4h5]} Rd7 {[%emt 0:04:45]} ({Black should play} 36... Rd4 $11) 37. h5 $1 $14 {[%emt 0:01:09]} gxh5 {[%emt 0:03:59]} (37... Be3 $14) 38. Rg8+ $18 {[%emt 0:00:14]} Kh6 {[%emt 0:00:06]} 39. Rf8 {[%emt 0:00:21]} Be3 {[%emt 0:02:53]} (39... Rg7 $16 {is a better defense.} 40. Rxf5 Be3 41. Rf6+ Rg6) 40. Rxf5 {[%emt 0:02:01]} Re7 {[%emt 0:00:38]} (40... Bd2 $142 41. Rf6+ Kh7) 41. Rf6+ {[%emt 0:32:22]} Kg7 {[%emt 0:30:17]} 42. Kg2 {[%emt 0:00:46]} a5 {[%emt 0:00:30]} 43. Kf3 {[%emt 0:00:00]} Bd4 {[%emt 0:00:00]} 44. Ke4 {[%emt 0:00:00]} Bf2 {[%emt 0:00:00]} (44... a4 45. Bd1 Bb2 46. Bxh5 Rb7) 45. f5 {[%emt 0:00:00][%cal Bf4f5,Bf5f6][%mdl 32] [#] Threatens to win with Rg6+.} h4 {[%emt 0:00:00]} 46. Rg6+ {[%emt 0:00:00] White mates.} Kh7 {[%emt 0:00:00]} 47. Bg8+ {[%emt 0:00:00]} Kh8 {[%emt 0:00:00]} 48. f6 {[%emt 0:00:00] Weighted Error Value: White=0.04 (flawless) /Black=0.35} 1-0

[Event "55th Biel Festival MTO 2022"]
[Site "Biel"]
[Date "2022.07.20"]
[Round "7.12"]
[White "Prraneeth Vuppala"]
[Black "Petrov Martin"]
[Result "1/2-1/2"]
[ECO "C11"]
[WhiteElo "2457"]
[BlackElo "2534"]
[Annotator "TA"]
[PlyCount "51"]
[EventDate "2022.07.13"]
[EventType "swiss"]
[EventCountry "SUI"]
[SourceTitle "playchess.com"]
[Source "ChessBase"]
[SourceQuality "1"]
[TimeControl "40/5400+30:1800+30"]

{[%evp 20,38,3,0,0,4,17,18,25,22,23,13,30,24,30,25,20,15,28,32,38]} 1. e4 {[%emt 0:00:04]} e6 {[%emt 0:00:23]} 2. d4 {[%emt 0:00:24]} d5 {[%emt 0:00:07]} 3. Nc3 {[%emt 0:00:06]} Nf6 {[%emt 0:00:08]} 4. e5 {[%emt 0:01:29]} Nfd7 {[%emt 0:00:33]} 5. f4 {[%emt 0:00:20]} c5 {[%emt 0:00:09]} 6. Nf3 {[%emt 0:00:07]} Nc6 {[%emt 0:00:07]} 7. Be3 {[%emt 0:00:28]} cxd4 {[%emt 0:03:20]} 8. Nxd4 {[%emt 0:00:39]} Qb6 {[%emt 0:00:05]} 9. Qd2 {[%emt 0:05:28]} Qxb2 {[%emt 0:00:29]} 10. Rb1 {[%emt 0:00:23][%cal Ba1b1,Bb1b3,Bb3b7][%mdl 32]} Qa3 {[%emt 0:00:05]} 11. Bb5 $1 {[%emt 0:02:18]} Nxd4 {[%emt 0:00:17] C11: French: Classical System: 4 e5 and 4 Bg5 dxe4.} 12. Bxd4 {[%emt 0:00:17][%cal Of4f5] [#] Threatens to win with f5!} ({Much weaker is} 12. Qxd4 a6 13. Bxd7+ Bxd7 14. Rxb7 Rc8 $17) 12... a6 {[%emt 0:00:07]} (12... Bb4 {is interesting.} 13. Rb3 Qa5 14. a3 Be7) 13. Bxd7+ {[%emt 0:00:52]} Bxd7 {[%emt 0:00:29] The position is equal.} 14. Rb3 {[%emt 0:00:28]} Qe7 {[%emt 0:00:07]} 15. Rxb7 {[%emt 0:00:42]} Qh4+ $1 {[%emt 0:00:14][%mdl 4] is currently scoring better than 15...Rc8.} 16. Qf2 {[%emt 0:25:18]} Qxf2+ {[%emt 0:00:19]} 17. Kxf2 {[%emt 0:00:16]} Be7 {[%emt 0:01:10]} 18. Rhb1 {[%emt 0:03:02]} Bd8 {[%emt 0:00:36]} 19. Rb8 {[%emt 0:19:22]} Rxb8 {[%emt 0:00:43] [#]  Weighted Error Value: White=0.01 (flawless) /Black=0.04 (flawless)} {Predecessor:} 20. Rxb8 $146 O-O 21. Rb7 Bc6 22. Ra7 Ba5 23. Rxa6 Bxc3 24. Bxc3 Rc8 25. Ke3 Bb5 26. Rb6 {½-½ (90) Svane,R (2615)-Gavrilescu,D (2477) Reykjavik 2021} 1/2-1/2

[Event "55th Biel Festival MTO 2022"]
[Site "Biel"]
[Date "2022.07.20"]
[Round "7.13"]
[White "Bharath Subramaniyam H"]
[Black "Seul, Georg"]
[Result "1-0"]
[ECO "A47"]
[WhiteElo "2479"]
[BlackElo "2367"]
[Annotator "TA"]
[PlyCount "101"]
[EventDate "2022.07.13"]
[EventType "swiss"]
[EventCountry "SUI"]
[SourceTitle "playchess.com"]
[Source "ChessBase"]
[SourceQuality "1"]
[TimeControl "40/5400+30:1800+30"]

{[%evp 10,101,0,0,0,0,7,0,0,3,7,0,0,0,6,8,15,15,14,0,0,0,0,0,0,-3,-9,-16,-12,-27,-26,-20,-20,-37,-25,-22,-30,-21,0,0,0,0,26,8,13,14,22,0,0,0,0,-24,41,39,37,26,30,35,83,85,87,91,160,153,148,131,135,122,130,133,182,180,160,153,124,125,198,210,223,197,267,267,266,232,372,361,491,471,733,733,916,338,903,888]} 1. d4 {[%emt 0:00:10]} Nf6 {[%emt 0:00:35]} 2. Nf3 {[%emt 0:00:07]} e6 {[%emt 0:00:17]} 3. Bf4 {[%emt 0:00:21]} c5 {[%emt 0:00:17]} 4. c3 {[%emt 0:00:11]} b6 {[%emt 0:01:02]} 5. e3 {[%emt 0:00:22]} Be7 {[%emt 0:00:38]} 6. h3 {[%emt 0:00:50]} O-O {[%emt 0:00:53] A47: 1 d4 Nf6 2 Nf3 b6: Torre, London and Colle Systems.} 7. Bd3 {[%emt 0:00:13]} Ba6 {[%emt 0:00:59]} 8. Bxa6 {[%emt 0:03:44]} Nxa6 {[%emt 0:00:05] The position is equal.} 9. O-O {[%emt 0:00:39]} Qc8 {[%emt 0:25:51]} 10. Qe2 {[%emt 0:10:37]} Qb7 {[%emt 0:07:59]} 11. Nbd2 {[%emt 0:11:50]} cxd4 {[%emt 0:05:53]} 12. exd4 {[%emt 0:05:02]} d6 {[%emt 0:05:34]} 13. a4 {[%emt 0:10:56]} Nc7 {[%emt 0:01:51]} 14. Bg5 {[%emt 0:02:34]} Rfe8 {[%emt 0:05:42] [#]} 15. Bxf6 $146 {[%emt 0:10:45]} ({Predecessor:} 15. Rfe1 h6 16. Bxf6 Bxf6 17. Qd3 Rad8 18. Re4 g6 19. Rae1 Bg7 20. Qc2 a6 21. h4 {0-1 (37) Krudde,F (2319)-Van den Doel,E (2592) Netherlands 2010}) 15... Bxf6 {[%emt 0:00:05]} 16. Rfe1 {[%emt 0:00:35][%cal Bf1e1,Be1e4,Be4f4][%mdl 32]} Be7 {[%emt 0:01:18]} 17. Ne4 {[%emt 0:05:11]} a6 {[%emt 0:04:51]} 18. Qc2 {[%emt 0:03:23]} b5 {[%emt 0:05:16]} 19. Neg5 {[%emt 0:02:13]} g6 $1 {[%emt 0:00:14]} 20. h4 {[%emt 0:00:54][%cal Bh3h4,Bh4h5,Bh5h6][%mdl 32]} Kg7 {[%emt 0:12:11]} 21. Re4 {[%emt 0:08:39]} Rab8 {[%emt 0:09:30]} 22. axb5 {[%emt 0:00:26]} axb5 {[%emt 0:02:49]} 23. Rae1 {[%emt 0:03:23]} Nd5 {[%emt 0:02:43]} 24. h5 {[%emt 0:08:06]} Bxg5 {[%emt 0:00:56]} 25. Nxg5 {[%emt 0:00:10]} Nf6 {[%emt 0:02:15] [#] And now ...Qd5 would win.} 26. Rf4 {[%emt 0:01:24] Threatening Qd2.} Qd5 {[%emt 0:00:14]} 27. h6+ $1 {[%emt 0:02:07]} Kg8 {[%emt 0:00:25]} 28. Nf3 {[%emt 0:00:50]} ({Much worse is} 28. Rxf6 Qxg5 29. Rf3 Qxh6 $17) (28. Nh3 $5 {[%cal Rf4f6]} Nd7 29. Rf3 $11) 28... Nd7 {[%emt 0:00:23]} 29. Rfe4 {[%emt 0:02:38]} Nf6 {[%emt 0:00:25]} 30. Rh4 {[%emt 0:00:45]} e5 {[%emt 0:01:09]} (30... Rec8 $11) 31. dxe5 {[%emt 0:01:07]} dxe5 {[%emt 0:00:03]} 32. Ng5 {[%emt 0:01:41] Prevents e4.} Rbd8 {[%emt 0:00:42]} 33. Rb4 {[%emt 0:00:59]} Rb8 {[%emt 0:02:43]} (33... Qc6 $14 {is more appropriate.}) 34. Rd1 $16 {[%emt 0:01:28]} Qc6 {[%emt 0:00:07]} 35. Qd3 {[%emt 0:00:24]} ({Don't play} 35. Qb3 Rb7 $14) 35... Qc5 {[%emt 0:00:44] [#]} ({Black should play} 35... Re7) 36. Qd6 $1 {[%emt 0:01:09]} Qb6 {[%emt 0:00:27]} 37. Rd2 $40 {[%emt 0:01:03][%mdl 128] White has strong attack. 0x0.001eb966e4c2dp-1022s more active pieces.} e4 {[%emt 0:00:21]} 38. Qxb6 {[%emt 0:00:35]} Rxb6 {[%emt 0:00:02]} 39. Nxe4 {[%emt 0:00:09]} Ng4 {[%emt 0:01:17]} (39... Nxe4 $16 {keeps fighting.} 40. Rxe4 Kf8) 40. f3 $18 {[%emt 0:00:26]} Nxh6 {[%emt 0:00:13]} 41. Rd6 {[%emt 0:30:36]} Rxd6 {[%emt 0:03:03]} 42. Nxd6 $16 {[%emt 0:00:00][%mdl 4096] Endgame KRN-KRN} Re2 {[%emt 0:02:53]} (42... Rd8 $16 {might work better.}) 43. Rxb5 $18 {[%emt 0:00:00]} Rc2 {[%emt 0:01:18]} 44. c4 {[%emt 0:00:00][%cal Bc3c4,Bc4c5][%mdl 32] b4 is the strong threat.} Kg7 {[%emt 0:02:48]} (44... Nf5 $142) 45. b4 {[%emt 0:00:00]} Kf6 {[%emt 0:01:19]} 46. Rb7 {[%emt 0:00:00] aiming for Rc7.} Ke5 {[%emt 0:02:39]} (46... Ke6 $142) 47. c5 {[%emt 0:00:00]} Kf4 {[%emt 0:00:17]} 48. Kh2 {[%emt 0:00:00]} g5 {[%emt 0:02:21]} (48... Ke5 $142 49. Kh3 Rc1) 49. Re7 {[%emt 0:00:00][%csl Gd6,Gf3][%cal Re7e4]} g4 {[%emt 0:03:36]} 50. Re4+ {[%emt 0:00:00]} Kg5 {[%emt 0:00:11] Hoping for ...gxf3.} 51. Rc4 {[%emt 0:00:00] Weighted Error Value: White=0.04 (flawless) /Black=0.21 (precise)} 1-0

[Event "55th Biel Festival MTO 2022"]
[Site "Biel"]
[Date "2022.07.20"]
[Round "7.14"]
[White "Banusz Tamas"]
[Black "Popiol Michal"]
[Result "1-0"]
[ECO "E66"]
[WhiteElo "2611"]
[BlackElo "2118"]
[Annotator "TA"]
[PlyCount "63"]
[EventDate "2022.07.13"]
[EventType "swiss"]
[EventCountry "SUI"]
[SourceTitle "playchess.com"]
[Source "ChessBase"]
[SourceQuality "1"]
[TimeControl "40/5400+30:1800+30"]

{[%evp 20,63,18,13,32,32,21,24,60,60,67,75,69,60,64,61,62,69,79,72,72,69,64,48,52,61,69,100,74,81,159,166,238,227,317,316,361,279,553,550,553,547,540,531,518,506]} 1. Nf3 {[%emt 0:00:04]} Nf6 {[%emt 0:00:08]} 2. c4 {[%emt 0:00:18]} g6 {[%emt 0:00:07]} 3. g3 {[%emt 0:00:05]} Bg7 {[%emt 0:00:06]} 4. Bg2 {[%emt 0:00:06]} O-O {[%emt 0:00:18]} 5. d4 {[%emt 0:00:07]} d6 {[%emt 0:00:07]} 6. Nc3 {[%emt 0:00:09]} c5 {[%emt 0:00:31]} 7. O-O {[%emt 0:00:29]} Nc6 {[%emt 0:00:05]} 8. d5 {[%emt 0:00:23]} Na5 {[%emt 0:00:12]} 9. Nd2 {[%emt 0:00:06]} e6 {[%emt 0:01:07]} 10. Qc2 {[%emt 0:02:37]} exd5 {[%emt 0:04:44]} 11. cxd5 {[%emt 0:00:12]} Bd7 {[%emt 0:00:50][%cal Bc8d7,Bd7b5,Bb5d3,Bd3c2][%mdl 32] E66: King's Indian: Fianchetto: 6...c5 7 0-0 Nc6 8 d5.} 12. b3 {[%emt 0:01:35]} b5 {[%emt 0:04:01]} 13. Bb2 {[%emt 0:00:10] [#]} b4 $146 {[%emt 0:01:33] White has an edge.} ({Predecessor:} 13... Rc8 14. Nce4 Nb7 15. Nxf6+ Bxf6 16. a4 b4 17. Bxf6 Qxf6 18. Nc4 Qg7 19. a5 a6 {½-½ (44) Leko,P (2663)-Carlsen,M (2863) chess24.com INT 2020}) 14. Nce4 {[%emt 0:03:45]} Bb5 {[%emt 0:00:09]} 15. Nxf6+ {[%emt 0:04:24]} Bxf6 {[%emt 0:00:06]} 16. a3 {[%emt 0:01:36]} Nb7 {[%emt 0:20:23]} (16... Bxe2 $2 17. Bxf6 Qxf6 18. Ne4 $18) 17. Rfe1 {[%emt 0:01:09]} a5 {[%emt 0:17:25]} 18. e4 {[%emt 0:13:26]} Bd3 {[%emt 0:07:24] [#]} 19. Bxf6 $1 {[%emt 0:05:34] aiming for Qb2.} Bxc2 {[%emt 0:00:06]} 20. Bxd8 {[%emt 0:00:09] White is more active.} Rfxd8 {[%emt 0:00:48]} 21. Rac1 {[%emt 0:04:58][%cal Ba1c1,Bc1c4,Bc4c6][%mdl 32]} Bd3 {[%emt 0:00:27]} 22. a4 {[%emt 0:00:21]} c4 {[%emt 0:20:05]} 23. Nxc4 {[%emt 0:00:51]} Bxc4 {[%emt 0:00:08]} 24. Rxc4 {[%emt 0:00:22]} Rac8 {[%emt 0:00:30] [#]} ({Black should try} 24... Nc5) 25. Rc6 $1 $16 {[%emt 0:05:56]} Nc5 {[%emt 0:02:02] [#]} (25... Kf8 {was called for.} 26. Bh3 Ra8) 26. Bh3 $1 $18 {[%emt 0:01:46]} Rxc6 {[%emt 0:05:47]} 27. dxc6 {[%emt 0:00:43] Strongly threatening c7. KRB-KRN} Na6 {[%emt 0:00:04]} 28. e5 {[%emt 0:02:54]} dxe5 $2 {[%emt 0:01:34]} (28... Kf8 {was worth a try.} 29. Rd1 Ke7) 29. Rxe5 {[%emt 0:00:36] White is clearly winning.} Rd1+ {[%emt 0:00:09]} 30. Kg2 {[%emt 0:02:14]} Rc1 {[%emt 0:00:21]} 31. Bd7 {[%emt 0:00:45]} Kg7 {[%emt 0:01:06]} 32. Rxa5 {[%emt 0:00:26] Weighted Error Value: White=0.06 (flawless) /Black=0.35} 1-0

[Event "55th Biel Festival MTO 2022"]
[Site "Biel"]
[Date "2022.07.20"]
[Round "7.15"]
[White "Stijve, Theo"]
[Black "Yu Yangyi"]
[Result "0-1"]
[ECO "C41"]
[WhiteElo "2394"]
[BlackElo "2720"]
[Annotator "TA"]
[PlyCount "56"]
[EventDate "2022.07.13"]
[EventType "swiss"]
[EventCountry "SUI"]
[SourceTitle "playchess.com"]
[Source "ChessBase"]
[SourceQuality "1"]
[TimeControl "40/5400+30:1800+30"]

{[%evp 14,56,28,31,36,23,27,26,25,28,38,0,0,0,0,4,5,-8,-17,-33,-27,-32,-27,-58,-37,-78,-66,-89,-90,-147,-159,-244,-155,-233,-214,-456,-426,-768,-767,-685,-595,-1016,-576,-1140,-1132]} 1. e4 {[%emt 0:00:29]} d6 {[%emt 0:01:36]} 2. d4 {[%emt 0:00:25]} Nf6 {[%emt 0:00:28]} 3. Nc3 {[%emt 0:00:30]} e5 {[%emt 0:00:22]} 4. Nf3 {[%emt 0:00:22]} Nbd7 {[%emt 0:00:09]} 5. Bc4 {[%emt 0:02:58]} Be7 {[%emt 0:00:10]} 6. a4 {[%emt 0:00:06]} O-O {[%emt 0:00:10]} 7. O-O {[%emt 0:00:11]} c6 {[%emt 0:00:16]} 8. a5 {[%emt 0:00:41]} exd4 {[%emt 0:06:36] C41: Philidor Defence.} 9. Qxd4 {[%emt 0:09:36]} Qc7 {[%emt 0:02:18] [#]} 10. Bf4 $146 {[%emt 0:05:42]} ({Predecessor:} 10. Rd1 Ne5 11. Be2 Bg4 12. Qe3 Rfd8 13. Nxe5 dxe5 14. Rxd8+ Qxd8 15. Bxg4 Nxg4 16. Qg3 {1-0 (58) Brewer,C (1945)-Evans,H (1577) Hastings 2016}) 10... Nh5 {[%emt 0:00:38] White has an edge.} 11. Be3 {[%emt 0:01:36]} Ne5 {[%emt 0:00:12]} 12. Nxe5 {[%emt 0:15:04]} dxe5 {[%emt 0:00:00]} 13. Qd1 {[%emt 0:06:00]} Nf4 {[%emt 0:09:12]} 14. g3 {[%emt 0:00:30]} Be6 {[%emt 0:00:30]} (14... Rd8 {is interesting.} 15. Qf3 Be6 16. Ra4 Bxc4 17. Rxc4 Ne6) 15. Bxe6 {[%emt 0:00:30]} (15. Ra4 {seems wilder.} Rfd8 16. Qf3 Bxc4 17. Rxc4 Ne6 18. Nd5) 15... Nxe6 {[%emt 0:00:30]} 16. Qd3 {[%emt 0:00:30]} Bb4 {[%emt 0:00:30]} 17. a6 {[%emt 0:02:47]} b5 {[%emt 0:00:26] Prevents Qc4.} 18. Na2 {[%emt 0:07:29]} Bc5 {[%emt 0:03:24]} 19. Rfe1 {[%emt 0:08:11]} Rfd8 $36 {[%emt 0:02:45][%cal Bf8d8,Bd8d6,Bd6a6][%mdl 2080] Black is more active.} (19... Rad8 $5 {[%cal Rd8d3]} 20. Qb3 Nd4 21. Bxd4 Rxd4 $17) 20. Qc3 {[%emt 0:01:10]} Bd4 {[%emt 0:01:51]} 21. Qa3 {[%emt 0:05:28] [#]} ({White should try} 21. Qb3) 21... c5 $1 $17 {[%emt 0:02:17]} 22. Rad1 {[%emt 0:02:54]} (22. Bc1 $17) 22... Rd6 {[%emt 0:05:28]} 23. b4 {[%emt 0:03:58]} (23. Kg2 $17) 23... Rad8 $19 {[%emt 0:01:22][%cal Od4b2] White must now prevent ...Bb2!} 24. Rb1 {[%emt 0:06:30]} (24. Bxd4 {might work better.} Nxd4 25. bxc5 Ne2+ 26. Rxe2 Rxd1+ 27. Kg2) 24... Qc8 {[%emt 0:01:34] Black is clearly winning.} 25. c4 {[%emt 0:06:10]} (25. Qd3 $142 Rxa6 26. Nc1) 25... Rxa6 {[%emt 0:02:23]} 26. Qb3 {[%emt 0:00:12]} Bxe3 {[%emt 0:00:08]} 27. fxe3 {[%emt 0:01:15]} Rd2 {[%emt 0:01:05]} 28. Nc3 {[%emt 0:01:59]} Ng5 {[%emt 0:00:09] Weighted Error Value: White=0.98/Black=0.30} 0-1

[Event "55th Biel Festival MTO 2022"]
[Site "Biel"]
[Date "2022.07.20"]
[Round "7.16"]
[White "Shevchenko Kirill"]
[Black "Song, Julien"]
[Result "1/2-1/2"]
[ECO "D32"]
[WhiteElo "2654"]
[BlackElo "2391"]
[Annotator "TA"]
[PlyCount "94"]
[EventDate "2022.07.13"]
[EventType "swiss"]
[EventCountry "SUI"]
[SourceTitle "playchess.com"]
[Source "ChessBase"]
[SourceQuality "1"]
[TimeControl "40/5400+30:1800+30"]

{[%evp 12,94,50,49,57,49,42,32,22,15,27,27,33,30,24,25,29,24,28,23,33,44,36,17,53,47,54,49,49,62,61,28,38,20,26,22,55,32,49,15,18,2,2,2,2,0,4,0,-3,-22,-19,-27,-16,-49,-52,-83,-28,-31,-28,-27,0,0,0,-31,0,0,0,0,0,0,0,0,0,0,0,0,0,0,0,0,0,0,0,0,0]} 1. c4 {[%emt 0:00:05]} e6 {[%emt 0:01:30][%cal Be7e6,Be6d5,Bd5d4][%mdl 32]} 2. Nc3 {[%emt 0:00:45]} d5 {[%emt 0:00:08]} 3. d4 {[%emt 0:00:05]} c5 {[%emt 0:00:08]} 4. cxd5 {[%emt 0:01:22]} exd5 {[%emt 0:00:09]} 5. Nf3 {[%emt 0:00:09]} Nc6 {[%emt 0:00:09]} 6. dxc5 {[%emt 0:01:45]} d4 {[%emt 0:00:22]} 7. Na4 {[%emt 0:00:03]} Bxc5 {[%emt 0:00:20][%mdl 64] [#] Decoy. D32: Tarrasch Defence: Sidelines and lines without g3.} 8. Nxc5 {[%emt 0:00:05]} Qa5+ {[%emt 0:00:04]} 9. Bd2 {[%emt 0:00:58]} Qxc5 {[%emt 0:00:05] White is slightly better.} 10. b4 {[%emt 0:03:35]} Qb6 {[%emt 0:00:27]} 11. Qa4 {[%emt 0:03:37]} a6 $1 {[%emt 0:00:35] Prevents b5.} 12. e3 {[%emt 0:01:51]} dxe3 {[%emt 0:04:05]} 13. fxe3 {[%emt 0:00:05] And now b5 would win.} ({Of course not} 13. Bxe3 Qxb4+ 14. Qxb4 Nxb4 $15) 13... Rb8 {[%emt 0:00:29]} 14. b5 {[%emt 0:23:10]} axb5 {[%emt 0:00:37]} 15. Qxb5 {[%emt 0:00:02]} Qxb5 {[%emt 0:27:17]} 16. Bxb5 {[%emt 0:05:43] [#]} Bd7 $146 {[%emt 0:04:36]} ({Predecessor:} 16... Nf6 17. Bc3 O-O 18. Bxf6 gxf6 19. a4 Be6 20. Kf2 Ne5 21. h3 Nxf3 22. Kxf3 Rfd8 23. Rac1 Rbc8 24. Rxc8 Rxc8 25. Rd1 {½-½ (25) Susla,V (2331)-Martin,A (2425) LSS email 2019}) 17. Bc3 {[%emt 0:07:58] This bishop pair is nice.} Nf6 {[%emt 0:00:30]} 18. Bxf6 {[%emt 0:01:14]} gxf6 {[%emt 0:11:48]} 19. O-O {[%emt 0:11:47]} Ke7 {[%emt 0:07:21]} 20. a4 {[%emt 0:00:30]} Rhc8 {[%emt 0:00:30]} 21. Nd2 {[%emt 0:00:30]} Ne5 {[%emt 0:00:30]} 22. Ne4 {[%emt 0:06:13]} Bxb5 {[%emt 0:08:46]} 23. axb5 {[%emt 0:03:06]} Nd7 {[%emt 0:06:13]} 24. Rad1 {[%emt 0:00:30]} Rc2 {[%emt 0:00:30]} 25. Rf4 {[%emt 0:07:54]} Ra8 {[%emt 0:07:43]} 26. Nd6 {[%emt 0:03:24]} Raa2 $1 {[%emt 0:06:20]} 27. Nf5+ {[%emt 0:05:07]} ({But not} 27. Nxb7 Rxg2+ 28. Kh1 Rxh2+ 29. Kg1 Rag2+ 30. Kf1 Rb2 $17) 27... Kd8 {[%emt 0:00:24]} 28. Rg4 {[%emt 0:01:02] Strongly threatening b6.} Kc7 {[%emt 0:00:53]} 29. Ne7 {[%emt 0:02:03]} Kb6 {[%emt 0:04:01]} 30. Rg7 {[%emt 0:05:02]} Ne5 {[%emt 0:02:01]} 31. Nd5+ {[%emt 0:02:47]} Kxb5 {[%emt 0:01:51]} 32. Rb1+ {[%emt 0:01:27]} Kc5 {[%emt 0:01:48]} 33. Nxf6 {[%emt 0:00:12] [#]} Ng6 {[%emt 0:00:47]} (33... h6 $1 $17) 34. Rxh7 $11 {[%emt 0:00:06]} Rxg2+ {[%emt 0:00:24]} 35. Kh1 {[%emt 0:00:31]} Rgc2 {[%emt 0:01:33]} 36. Ng4 {[%emt 0:00:54]} Rg2 {[%emt 0:01:34]} 37. Nf6 {[%emt 0:00:25]} Rgc2 {[%emt 0:01:02]} 38. Ng4 {[%emt 0:01:53] The position is equal.} Rg2 {[%emt 0:00:42]} 39. h3 {[%emt 0:01:14]} f5 {[%emt 0:00:48]} 40. Rh5 {[%emt 0:00:16]} Nh4 {[%emt 0:00:58]} 41. Rxh4 {[%emt 0:05:26] Black must now prevent Rh5.} fxg4 {[%emt 0:00:19]} 42. hxg4 {[%emt 0:00:04][%mdl 4096] Endgame KRR-KRR} b5 {[%emt 0:07:37]} 43. Rh5+ {[%emt 0:07:37]} Kc4 {[%emt 0:02:59]} 44. Rbxb5 {[%emt 0:04:27]} Rxg4 {[%emt 0:04:45]} 45. Rb1 {[%emt 0:02:00]} Re2 {[%emt 0:08:10]} 46. Ra1 {[%emt 0:01:28] Intending Ra4+ and mate.} Re4 {[%emt 0:02:42]} 47. Rc1+ {[%emt 0:02:52]} Kd3 {[%emt 0:01:00] Weighted Error Value: White=0.06 (flawless) /Black=0.05 (flawless)} 1/2-1/2